Cogmind - Beta 15 @@@ ROGUE MODE // 2025.05.06 @ 17:50:03 Player: Aklangi Result: Destroyed by Y-64 Sentinel with Wave Gun Performance ------------- Evolutions (5) 2500 Regions Visited (4) 800 Robots Destroyed (11) 55 Value Destroyed (472) 472 Prototype IDs (15) 300 Alien Tech Used (0) 0 Bonus (800) 800 TOTAL SCORE: 4927 Bonus ------- Registered with UFD 300 Met Optimus in HQ 500 Cogmind --------- Core Integrity 0/1000 Matter 183/300 Energy 311/315 System Corruption 4% Temperature Cool (9) Movement Treading (160) Location -5/Factory Parts ------- > --- POWER (3) -------- Neutrino Core > --- PROPULSION (5) --- Medium Treads > --- UTILITY (6) ------ Advanced System Shield > --- WEAPON (3) ------- Heavy Flak Cannon > --- INVENTORY (5) ---- (None) Peak State ------------ > --- POWER ------------ Deuterium Engine Micro Fission Core > --- PROPULSION ------- Heavy Treads Heavy Treads Overtuned Titanium Leg > --- UTILITY ---------- Scrap Suit Medium Storage Unit A0-MCA's Component Scanner > --- WEAPON ----------- Small Laser Bolt Gun Hypervelocity Gauss Rifle > --- INVENTORY -------- (None) [Rating: 61] Favorites ----------- Power Ion Engine Engine Ion Engine Power Core Micro Fission Core Propulsion Aluminum Leg Treads Heavy Treads Leg Aluminum Leg Utility Small Storage Unit Device Scrap Suit Storage Small Storage Unit Processor A0-MCA's Component Scanner Hackware Advanced System Shield Weapon Light Assault Rifle Energy Gun EM Pulse Gun Ballistic Gun Light Assault Rifle Ballistic Cannon Heavy Flak Cannon Special Weapon Junk Cannon Build | -11 -10 -10 -7 -5 ------- Run | Yrd Mat Sub Scr Fac Slots Evolved 10 | . . . . 10 Power 2 | . . . . 2 Propulsion 3 | . . . . 3 Utility 4 | . . . . 4 Weapon 1 | . . . . 1 Parts Attached 38 | 6 1 1 9 21 Power 7 | 1 . 1 1 4 Engine 4 | 1 . 1 1 1 Core 3 | . . . . 3 Reactor . | . . . . . Propulsion 10 | 2 . . 4 4 Treads 3 | . . . . 3 Leg 7 | 2 . . 4 1 Wheel . | . . . . . Hover . | . . . . . Flight . | . . . . . Utility 11 | 1 1 . 2 7 Device 6 | . . . 1 5 Storage 2 | 1 1 . . . Processor 2 | . . . 1 1 Hackware 1 | . . . . 1 Protection . | . . . . . Artifact . | . . . . . Weapon 10 | 2 . . 2 6 Energy Gun 4 | 1 . . . 3 Energy Cannon . | . . . . . Ballistic Gun 2 | 1 . . . 1 Ballistic Cannon 1 | . . . . 1 Launcher . | . . . . . Special Weapon 3 | . . . 2 1 Impact Weapon . | . . . . . Slashing Weapon . | . . . . . Piercing Weapon . | . . . . . Special Melee Weapon . | . . . . . Unidentified Prototypes 2 | . . . . 2 Parts Lost 21 | . . 1 . 20 Power 4 | . . 1 . 3 Propulsion 5 | . . . . 5 Utility 5 | . . . . 5 Weapon 7 | . . . . 7 Highest Loss Streak 10 | . . 1 . 10 To Critical Strikes 1 | . . . . 1 Average Backups 3 | . 2 2 3 2 Power . | . 1 . . . Propulsion . | . . . . . Utility . | . . 1 . . Weapon 1 | . 1 1 1 1 Tool/Special . | . . . . . Unused Backups . | . . . . . Power . | . . . . . Propulsion . | . . . . . Utility . | . . . . . Weapon . | . . . . . Tool/Special . | . . . . . Average Slot Usage (%) 77 | . 87 84 89 52 Engine 11 | . 14 13 14 7 Core 1 | . . . . 3 Leg 23 | . 28 28 28 13 Device 2 | . . . 2 3 Storage 11 | . 16 14 14 3 Processor 4 | . . . 5 4 Energy Gun 6 | . 14 14 5 3 Ballistic Gun 8 | . 14 14 10 1 Special Weapon 5 | . . . 8 2 Peak Build Rating 61 | 6 7 6 34 61 Average Rating 22 | 4 6 5 15 44 On Entrance 10 | . 6 6 6 34 Naked Turns 36 | . . . . 36 Heaviest Build 53 | 11 11 13 33 53 Greatest Support 140 | 20 20 20 39 140 Greatest Overweight (x) 5 | 1 . . 1 5 Average Overweight (x) . | . . . . . Largest Inventory Capacity 10 | 8 10 8 10 10 Average Capacity 8 | 7 8 8 8 8 Most Carried 9 | 2 3 3 9 8 Average Carried 3 | . 2 2 3 2 Final Capacity 10 | 8 8 8 10 5 Final Carried 9 | 2 3 2 9 . Class Distribution -------------------- 78% | Mutant 11% | Scavenger-Gunner 6% | Scavenger-Scrapper 3% | Tank Dominant Class ---------------- Mutant | -10/Materials Mutant | -10/Subcaves Mutant | -7/Scraptown Scavenger-Gunner | -5/Factory Resources | -11 -10 -10 -7 -5 ----------- Run | Yrd Mat Sub Scr Fac Matter Collected 494 | 222 . 65 100 107 Remotely . | . . . . . Salvage Created 508 | . . 112 . 396 Parts 15 | . . 8 . 7 Haulers Intercepted . | . . . . . Recyclers Shooed . | . . . . . Parts Field Recycled . | . . . . . Retrieved Matter . | . . . . . Parts Self-Destructed 4 | . . 4 . . Prevented . | . . . . . Kills | -11 -10 -10 -7 -5 ------- Run | Yrd Mat Sub Scr Fac Combat Hostiles Destroyed 10 | . . 2 . 8 Melee 1 | . . . . 1 Guns 2 | . . 2 . . Cannons 1 | . . . . 1 AOE 1 | . . . . 1 Classes Destroyed 5 | . . 1 . 4 Worker 1 | . . . . 1 Swarmer 1 | . . . . 1 Grunt 6 | . . . . 6 Sentry 1 | . . . . 1 Subdweller 2 | . . 2 . . Best Kill Streak 3 | . . 1 . 3 Combat Bots Only 3 | . . 1 . 3 Max Kills in Single Turn 1 | . . 1 . 1 Gunslinging . | . . . . . Exploded 1 | . . . . 1 Melee 1 | . . . . 1 Uniques/NPCs Destroyed . | . . . . . Combat | -11 -10 -10 -7 -5 -------- Run | Yrd Mat Sub Scr Fac Hostile Shots Fired 314 | . . 10 15 289 Missed 97 | . . 2 3 92 Hits 217 | . . 8 12 197 Projectile 217 | . . 8 12 197 AOE 1 | . . . . 1 Critical Strikes 9 | . . . 3 6 Damage Taken 4547 | . . 201 288 4058 Core 1084 | . . 59 22 1003 Absorbed by Shields . | . . . . . Core Remaining (%) 83 | 100 . . 67 . Volleys Fired 52 | . . 12 9 31 Largest 3 | . . 2 1 3 Hottest 161 | . . 60 . 161 Shots Fired 96 | . . 24 9 63 Gun 67 | . . 24 . 43 Cannon 4 | . . . . 4 Launcher . | . . . . . Special 25 | . . . 9 16 Kinetic 29 | . . 12 . 17 Thermal 26 | . . . . 26 Explosive . | . . . . . Electromagnetic 16 | . . 12 . 4 Impact 24 | . . . 9 15 Robot Hit Streak 14 | . . 6 8 14 Robot Miss Streak 7 | . . 1 2 7 Penetration Max . | . . . . . Secondary Targets . | . . . . . Shots Hit Robots 68 | . . 14 7 47 Core Hits 20 | . . 2 . 18 Critical Kills . | . . . . . Critical Parts Destroyed 4 | . . . . 4 Critical Strikes 4 | . . . . 4 Destroy 1 | . . . . 1 Smash 3 | . . . . 3 Melee Attacks . | . . . . . Impact . | . . . . . Slashing . | . . . . . Piercing . | . . . . . Sneak Attacks . | . . . . . Combat Hostiles . | . . . . . Follow-up Attacks . | . . . . . Damage Inflicted 2258 | . . 47 476 1735 Guns 538 | . . 47 . 491 Cannons 136 | . . . . 136 Explosions . | . . . . . Melee . | . . . . . Ramming 137 | . . . . 137 Kinetic 227 | . . 25 . 202 Thermal 399 | . . . . 399 Explosive . | . . . . . Electromagnetic 48 | . . 22 . 26 Impact 1447 | . . . 476 971 Slashing . | . . . . . Piercing . | . . . . . Highest Corruption 4 | . . . . 4 Average Corruption 3 | . . . . 3 Corruption Purged . | . . . . . Corruption Blocked . | . . . . . Effects 5 | . . . . 5 Message Errors 1 | . . . . 1 Matter Fused 1 | . . . . 1 Heat Flow Errors 1 | . . . . 1 Data Loss (minor) 1 | . . . . 1 Data Loss (major) 1 | . . . . 1 Overload Shots . | . . . . . Overflow Damage 425 | . . . 125 300 Projectiles 425 | . . . 125 300 Explosions . | . . . . . Melee . | . . . . . Knockbacks 6 | . . . 3 3 Impact 6 | . . . 3 3 Kinetic . | . . . . . Secondary . | . . . . . Self-Inflicted Damage 8 | . . . . 8 Shots . | . . . . . Rammed 7 | . . . . 7 Targets Rammed 18 | . . . . 18 Kicked 10 | . . . . 10 Crushed 1 | . . . . 1 Highest Temperature 391 | . . . 26 391 Average Temperature 85 | . . . 13 87 Received Heat Transfer 1081 | . . 18 163 900 Siege Activations . | . . . . . Martial Activations . | . . . . . Shielding Activations . | . . . . . Robots Disrupted . | . . . . . Combat Hostiles . | . . . . . Robots Corrupted 5 | . . . . 5 Combat Hostiles 5 | . . . . 5 Parts Fried 3 | . . . . 3 Impact Corruptions 11 | . . . 3 8 Robots Melted . | . . . . . Combat Hostiles . | . . . . . Parts Melted 1 | . . 1 . . Heat Transferred 643 | . . . . 643 Parts Sabotaged . | . . . . . Parts Stolen . | . . . . . Parts Stripped . | . . . . . Power Chain Reactions . | . . . . . Alert | -11 -10 -10 -7 -5 ------- Run | Yrd Mat Sub Scr Fac Maximum Alert Level . | . . . . . Low Security (%) 100 | 100 100 . . 100 Level 1 . | . . . . . Level 2 . | . . . . . Level 3 . | . . . . . Level 4 . | . . . . . Level 5 . | . . . . . High Security . | . . . . . Max Security . | . . . . . Peak Influence 115 | . . . . 115 Initial . | . . . . . Average 23 | . . . . 26 Influence Increases 330 | . . . . 330 Destroy 0b10 Robot/C 160 | . . . . 160 Destroy 0b10 Robot/NC 5 | . . . . 5 Destroy Leader 20 | . . . . 20 Successful Hack 6 | . . . . 6 Destroy Structure 4 | . . . . 4 Lose Combat Pursuer 135 | . . . . 135 Influence Decreases 330 | . . . . 330 Time Decay 186 | . . . . 186 Lost Part 144 | . . . . 144 Squads Dispatched 9 | . . . . 9 Investigation 2 | . . . . 2 Extermination 1 | . . . . 1 Reinforcement 3 | . . . . 3 Assault . | . . . . . Garrison 3 | . . . . 3 Intercept . | . . . . . Searches Triggered . | . . . . . Construction Impeded 1 | . . . . 1 Haulers Reinforced . | . . . . . Active Scanning Responses . | . . . . . Cargo Convoy Interrupts . | . . . . . Stealth | -11 -10 -10 -7 -5 --------- Run | Yrd Mat Sub Scr Fac Distress Signals . | . . . . . Communications Jammed . | . . . . . Distress Signals . | . . . . . Times Spotted 42 | . . 4 12 26 Peak Tracking Total 11 | . . 1 4 11 Tactical Retreats 6 | . . . 1 5 Traps | -11 -10 -10 -7 -5 ------- Run | Yrd Mat Sub Scr Fac Traps Triggered . | . . . . . Indirectly . | . . . . . Trap Hack Attempts . | . . . . . Triggered . | . . . . . Disarmed . | . . . . . Reprogrammed . | . . . . . Reused . | . . . . . Traps Extracted . | . . . . . Installed . | . . . . . Triggered . | . . . . . Machines | -11 -10 -10 -7 -5 ---------- Run | Yrd Mat Sub Scr Fac Machines Disabled . | . . . . . Max in Single Turn . | . . . . . Machines Repaired . | . . . . . Machines Dismantled . | . . . . . Machines Sabotaged . | . . . . . Overloaded Fab Kills . | . . . . . Hacking | -11 -10 -10 -7 -5 --------- Run | Yrd Mat Sub Scr Fac Machines Accessed 14 | . . . 7 7 Terminals 5 | . . . . 5 Fabricators 1 | . . . . 1 Repair Stations . | . . . . . Recycling Units 1 | . . . . 1 Scanalyzers . | . . . . . Garrison Access . | . . . . . Total Hacks 67 | . . . 52 15 Successful 59 | . . . 52 7 Failed 8 | . . . . 8 Catastrophic 2 | . . . . 2 Database Lockouts . | . . . . . Manual 8 | . . . 3 5 Terminals 12 | . . . . 12 Fabricators 1 | . . . . 1 Repair Stations . | . . . . . Recycling Units 2 | . . . . 2 Scanalyzers . | . . . . . Garrison Access . | . . . . . Terminal Hacks 57 | . . . 52 5 Record 50 | . . . 46 4 Robot Analysis 6 | . . . 6 . Open DSF 1 | . . . . 1 Fabricator Hacks 1 | . . . . 1 Network Status 1 | . . . . 1 Repair Station Hacks . | . . . . . Recycling Unit Hacks . | . . . . . Scanalyzer . | . . . . . Garrison Access Hacks . | . . . . . Unauthorized Hacks 1 | . . . . 1 Terminals . | . . . . . Fabricators . | . . . . . Repair Stations 1 | . . . . 1 Recycling Units . | . . . . . Fedlink 1 | . . . . 1 Scanalyzers . | . . . . . Garrison Access . | . . . . . Data Cores Recovered . | . . . . . Used . | . . . . . Hacking Detections 5 | . . . . 5 Full Trace Events 1 | . . . . 1 Feedback Events . | . . . . . Feedback Blocked . | . . . . . Robot Schematics Acquired . | . . . . . Robots Built . | . . . . . Authchips . | . . . . . Time . | . . . . . Total Robot Build Rating . | . . . . . Part Schematics Acquired . | . . . . . Parts Built . | . . . . . Authchips . | . . . . . Time . | . . . . . Total Part Build Rating . | . . . . . Parts Repaired . | . . . . . Time . | . . . . . Parts Recycled . | . . . . . Recycled Matter . | . . . . . Retrieved Matter . | . . . . . Retrieved Components . | . . . . . Parts Scanalyzed . | . . . . . Part Schematics Acquired . | . . . . . Parts Damaged . | . . . . . Bothacking | -11 -10 -10 -7 -5 ------------ Run | Yrd Mat Sub Scr Fac Used RIF Installer . | . . . . . Robots Hacked . | . . . . . Non-combat . | . . . . . Combat . | . . . . . Robot Hacks Applied . | . . . . . Relay Couplers Released . | . . . . . Fabnet Peak Effective % . | . . . . . Robots Rewired . | . . . . . Allies Hacked . | . . . . . Hacks Repelled . | . . . . . Allies | -11 -10 -10 -7 -5 -------- Run | Yrd Mat Sub Scr Fac Total Allies . | . . . . . Largest Group . | . . . . . Highest-Rated Group . | . . . . . Highest-Rated Ally . | . . . . . Total Orders . | . . . . . Ally Attacks . | . . . . . Total Damage . | . . . . . Kills . | . . . . . Allies Corrupted . | . . . . . Allies Melted 4 | . . . 4 . Intel | -11 -10 -10 -7 -5 ------- Run | Yrd Mat Sub Scr Fac Active Infowar (turns) 20 | . . . . 20 Optics 20 | . . . . 20 Robot Analysis Total 6 | . . . 6 . Derelict Logs Recovered . | . . . . . Drone Launches . | . . . . . Drone Recoveries . | . . . . . Exploration | -11 -10 -10 -7 -5 ------------- Run | Yrd Mat Sub Scr Fac Turns Passed 2739 | 56 48 254 1579 802 Spaces Moved 2110 | 38 39 182 1244 607 Core 155 | 3 . . . 152 Treads 71 | . . . . 71 Legs 1884 | 35 39 182 1244 384 Wheels . | . . . . . Hover . | . . . . . Flight . | . . . . . Fastest Speed 50 | 50 120 120 115 50 Average Speed 117 | 120 120 120 123 104 Slowest Speed 300 | 190 120 120 200 300 Overloaded Moves . | . . . . . Propulsion Burnouts . | . . . . . Robots Hopped . | . . . . . Potential Cave-ins . | . . . . . Cave-ins Triggered . | . . . . . Exploration Rate (%) 24 | 3 6 17 83 15 Regions Visited 4 Branch Regions 2 Pre-discovered Areas . | . . . . . Known Exits Taken 1 | . . . 1 . Unknown Exits Taken 3 | 1 1 1 . . Scrap Searched 3 | . . . 3 . Spaces Dug . | . . . . . Terrain Destroyed 3 | . . . 1 2 Melee . | . . . . . Projectile 3 | . . . 1 2 AOE . | . . . . . Terrain Rammed . | . . . . . Walls Destroyed . | . . . . . Machines Disabled . | . . . . . Actions | -11 -10 -10 -7 -5 --------- Run | Yrd Mat Sub Scr Fac Total 2273 | 45 40 196 1277 715 Wait 30 | . . . . 30 Move 2106 | 37 38 181 1243 607 Hop . | . . . . . Pick Up 11 | 2 . 1 7 1 Fast Attach 23 | 6 1 . 2 14 Attach 13 | . . 1 2 10 Detach 2 | . 1 . 1 . Swap 8 | . . . 6 2 Drop 10 | . . 1 7 2 Fire 52 | . . 12 9 31 Melee . | . . . . . Ram 1 | . . . . 1 Kick 10 | . . . . 10 Crush 7 | . . . . 7 Escape Stasis . | . . . . . Rewire . | . . . . . Trap . | . . . . . Miscellaneous . | . . . . . Route ------- -11/Scrapyard -10/Materials -10/Subcaves -7/Scraptown (discovered 2 exits: *Fac x2) -5/Factory History --------- Turn | Location | Event 32 | -11/Scrapyard | Discovered new exit (range 15) 57 | -11/Scrapyard | Entered Materials 58 | -10/Materials | Met a group of wandering Federalists 97 | -10/Materials | Discovered new exit (range 8) 105 | -10/Materials | Entered Subcaves 105 | -10/Subcaves | Accompanied by 3 allies 106 | -10/Subcaves | Continued accompanying wandering Federalists (6) 106 | -10/Subcaves | Approached by a straggling Scientist 311 | -10/Subcaves | Build established: Mutant 333 | -10/Subcaves | Wandering Federalist uncovered a shortcut to Scraptown 359 | -10/Subcaves | Entered Scraptown 675 | -7/Scraptown | Discovered new exit (range 5) 803 | -7/Scraptown | Visited Cave Peace 856 | -7/Scraptown | Visited Junk Repository 891 | -7/Scraptown | Visited UFD Registry 893 | -7/Scraptown | Registered with UFD as "Gammaplate" 912 | -7/Scraptown | Visited Shadow of the Wyrm 1212 | -7/Scraptown | Visited Analyses Database 1252 | -7/Scraptown | Visited Abandonware Association 1275 | -7/Scraptown | Learned abandonware demo "POISON.EXE" 1275 | -7/Scraptown | Learned abandonware demo "MELTYB.EXE" 1307 | -7/Scraptown | Visited A0-MCA Data Center 1317 | -7/Scraptown | Given a B+ rating by A0-MCA 1323 | -7/Scraptown | Found A0-MCA's Component Scanner 1544 | -7/Scraptown | Visited Junk Cannon Lab 1553 | -7/Scraptown | Found Junk Cannon 1608 | -7/Scraptown | Met Optimus 1608 | -7/Scraptown | Accepted into 0bPrime 1707 | -7/Scraptown | Visited Research Penetration Think Tank 1722 | -7/Scraptown | Civil war broke out across Scraptown 1783 | -7/Scraptown | Lost 3 allies 1795 | -7/Scraptown | Visited Infowarlord's Domain 1797 | -7/Scraptown | Identified exit to Factory 1815 | -7/Scraptown | Visited DA-N13 Charitable Foundation 1896 | -7/Scraptown | Lost 7 allies 1898 | -7/Scraptown | Found Scrap Suit 1938 | -7/Scraptown | Entered Factory 1938 | -5/Factory | Evolved 10 slots: Power x2, Propulsion x3, Utility x4, Weapon x1 2103 | -5/Factory | Loaded intel: 8 recycling unit locations 2386 | -5/Factory | Garrison activated, responded to threat 2439 | -5/Factory | Lost 5 parts (2p2n1w) 2444 | -5/Factory | Spotted B-75 Beast 2575 | -5/Factory | Released all parts (5) 2577 | -5/Factory | Core integrity fell below 50% 2600 | -5/Factory | Lost 10 parts (1p3n1u5w) 2656 | -5/Factory | Core integrity fell below 20% 2703 | -5/Factory | Lost 3 parts (3u) 2740 | -5/Factory | Destroyed by Y-64 Sentinel with Wave Gun Last Messages --------------- larger [Derelict] incursion, a number of traps are being engineered and deployed as a more efficient way to hinder enemy advances and buy the time necessary to mobilize a garrisoned response force. Because traps are installed in areas regularly traveled by even non-combat robots, their sensitivity is set well below their maximum potential to avoid disruptions that could result from a damaged robot accidentally triggering one. 02684_ ALERT: Suspicious activity at Terminal F017. Dispatching Investigation squad. 02686_ System corrupted: Heat flow error (+286). 02688_ Slammed into T-07 Excavator. 02693_ Acquired Neutrino Core. 02702_ ALERT: Cargo convoy en route, clear transfer corridor. 02707_ System corrupted: Substantial component data lost. 02707_ Acquired Med. Treads. 02718_ Acquired Imp. Component Analysis Suite. 02732_ Penetrated by Slug. 02733_ Acquired Hvy. Flak Cannon. 02735_ Imp. Component Analysis Suite destroyed. 02735_ Penetrated by Slug. Map ----- +----------------------------------------------------+ | ###### """ #??# #????????????????????????# | | / # " #??# #????????????????????????# | | # "F"=#??# #?????????????????????????? | | # """%#### ###???????????????????????? | | # ! =## ##+####?????????????##### | | !! # ## #?????????# | | !! # ! """" %/ #?????????# | | # """"" =## ! #?????????# | | !! # """ ## ####### #?????????# | | ! + ####+###?????# #?????????# | | ##############????????????# #?????????# | | """ # #?###????????????# #?????????# | | """ # """" #????????????????# #?????????# | | """ #! """" #????????????????# #?????????##### | | # """" #????????????????# #?????????????? | | # """" #????????????????# #?????????????? | | + """" #???????########## #?????????????? | | T" # """" #???????# # #???#########?? | | # """" #???????# # #???# ### | | # #???????# # ##### | | ##+############???????# #gg "" | | #??????????# YY T | | #??????????# # | | #??????????# ######### | | """" """" #??????????# #???????# ### | | """" """" #??????????# @ #???????#########?? | | """" """" #??????????##########?????????????????? | | """" """" #?????????????????????????????????????? | | ############?????????????????????????????????????? | | | | | | | | | | | | | | | | | | | | | | | | | | | | | | | | | | | | | | | | | | | +----------------------------------------------------+ Best States ------------- Heat Dissipation 40 Energy Generation 31 Energy Capacity 615 Matter Stores 300 Matter Capacity 300 Sight Range 22 Terrain Scan Density 10 Evasion (%) 55 Recoil Reduction 6 Kinecelleration 30 Defensive Hacking 14 Item Schematics ----------------- None Robot Schematics ------------------ None Fabricated ------------ Nothing Repaired ---------- Nothing Alien Tech Used ----------------- None Achievements -------------- Armchair Analyst Brute Force Challenges ------------ None Game ------ Seed NeutrinoFrostHammer Manual? 0 Play Time 00:48:48 Cumulative 20.5 hours Start 2025.05.06 @ 03:17:39 End 2025.05.06 @ 17:50:03 Sessions 2 Manual Loads 0 Difficulty Rogue Special Mode None Game No. 42 Rogue 42 Adventurer 0 Explorer 0 Win Type - Total 1 Types 1/0/0/0/0/0/0/0/0/0 Lore% 22 Gallery% 30 Achievement% 33 Wizard Run 0 Options --------- Layout 0 ASCII 0 Keyboard 0 Movement Arrows Keybinds 0 Fullscreen 1 Font 18/SmallcapsGlow Map View 76x50 Zoom Use 0% Tactical HUD 1 Map Filters NONE Filters NONE Steam 1 RUN: 6c5b35e6-4c5f-497f-b241-796a88e818de